[Event "Titled Tuesday Blitz May 9 Early 2023"]
[White "Lwanga, Aguda"]
[Black "Fernandez Siles, Luis"]
[WhiteFideId "10801529"]
[BlackFideId "2209420"]
[WhiteElo "1475"]
[BlackElo "2195"]
[Result "0-1"]
[Round "08"]
[TimeControl "180+2"]
[Date "2023.05.09"]
[WhiteClock "0:00:05"]
[BlackClock "0:00:25"]

1. e4 {[%clk 0:02:48]}  c5 {[%clk 0:02:58]} 2. Nf3 {[%clk 0:02:44]}  Nc6 {[%clk 0:02:58]} 3. Bb5 {[%clk 0:02:42]}  g6 {[%clk 0:02:58]} 4. Bxc6 {[%clk 0:02:35]}  dxc6 {[%clk 0:02:58]} 5. O-O {[%clk 0:02:35]}  Bg7 {[%clk 0:02:59]} 6. d3 {[%clk 0:02:34]}  Nf6 {[%clk 0:02:58]} 7. Nbd2 {[%clk 0:02:21]}  O-O {[%clk 0:02:55]} 8. Rb1 {[%clk 0:02:19]}  Nd7 {[%clk 0:02:47]} 9. b3 {[%clk 0:01:37]}  e5 {[%clk 0:02:42]} 10. a4 {[%clk 0:01:36]}  Re8 {[%clk 0:02:28]} 11. Bb2 {[%clk 0:01:34]}  Nf8 {[%clk 0:02:22]} 12. Nc4 {[%clk 0:01:18]}  f6 {[%clk 0:02:15]} 13. Re1 {[%clk 0:01:14]}  Ne6 {[%clk 0:02:14]} 14. h3 {[%clk 0:01:13]}  Nf4 {[%clk 0:02:01]} 15. Bc1 {[%clk 0:01:11]}  Ne6 {[%clk 0:01:56]} 16. Bb2 {[%clk 0:01:10]}  Kh8 {[%clk 0:01:42]} 17. Ne3 {[%clk 0:01:00]}  Nf4 {[%clk 0:01:40]} 18. Qd2 {[%clk 0:00:52]}  Be6 {[%clk 0:01:16]} 19. b4 {[%clk 0:00:43]}  cxb4 {[%clk 0:01:13]} 20. Qxb4 {[%clk 0:00:43]}  Qd7 {[%clk 0:01:13]} 21. Rbd1 {[%clk 0:00:38]}  Bxh3 {[%clk 0:01:09]} 22. Nh2 {[%clk 0:00:31]}  Be6 {[%clk 0:01:01]} 23. d4 {[%clk 0:00:27]}  exd4 {[%clk 0:00:49]} 24. Bxd4 {[%clk 0:00:25]}  Qe7 {[%clk 0:00:49]} 25. Bc5 {[%clk 0:00:21]}  Qf7 {[%clk 0:00:47]} 26. Bd6 {[%clk 0:00:14]}  Bh6 {[%clk 0:00:43]} 27. e5 {[%clk 0:00:13]}  Nd5 {[%clk 0:00:37]} 28. Nxd5 {[%clk 0:00:10]}  Bxd5 {[%clk 0:00:37]} 29. exf6 {[%clk 0:00:05]}  Qxf6 {[%clk 0:00:33]} 30. Ng4 {[%clk 0:00:06]}  Qg5 {[%clk 0:00:26]} 31. Nxh6 {[%clk 0:00:05]}  Qxg2# {[%clk 0:00:25]} 0-1


[Site "https://www.chess.com"]

[Event "Titled Tuesday Blitz May 9 Early 2023"]
[White "Rodriguez Santiago, Jaime"]
[Black "Aung Thant Zin"]
[WhiteFideId "3100898"]
[BlackFideId "13000063"]
[WhiteElo "2025"]
[BlackElo "2278"]
[Result "1-0"]
[Round "08"]
[TimeControl "180+2"]
[Date "2023.05.09"]
[WhiteClock "0:01:23"]
[BlackClock "0:00:00"]

1. c4 {[%clk 0:03:00]}  e5 {[%clk 0:02:59]} 2. Nc3 {[%clk 0:02:58]}  Nf6 {[%clk 0:02:56]} 3. g3 {[%clk 0:02:58]}  d5 {[%clk 0:02:56]} 4. cxd5 {[%clk 0:02:58]}  Nxd5 {[%clk 0:02:57]} 5. Bg2 {[%clk 0:02:58]}  Nb6 {[%clk 0:02:55]} 6. e3 {[%clk 0:02:58]}  Be7 {[%clk 0:02:50]} 7. Nge2 {[%clk 0:02:58]}  O-O {[%clk 0:02:43]} 8. O-O {[%clk 0:02:58]}  c6 {[%clk 0:02:27]} 9. f4 {[%clk 0:02:57]}  exf4 {[%clk 0:02:12]} 10. Nxf4 {[%clk 0:02:57]}  Bf5 {[%clk 0:02:00]} 11. b3 {[%clk 0:02:51]}  N8d7 {[%clk 0:01:36]} 12. Bb2 {[%clk 0:02:50]}  Nf6 {[%clk 0:01:31]} 13. Qe2 {[%clk 0:02:28]}  Qd7 {[%clk 0:01:21]} 14. h3 {[%clk 0:02:13]}  Rad8 {[%clk 0:01:12]} 15. Rad1 {[%clk 0:02:09]}  Bd3 {[%clk 0:01:10]} 16. Nxd3 {[%clk 0:02:09]}  Qxd3 {[%clk 0:01:10]} 17. Qe1 {[%clk 0:01:59]}  Qc2 {[%clk 0:00:53]} 18. Ba1 {[%clk 0:01:55]}  Rfe8 {[%clk 0:00:45]} 19. Rf2 {[%clk 0:01:55]}  Qd3 {[%clk 0:00:42]} 20. Kh2 {[%clk 0:01:52]}  Nbd5 {[%clk 0:00:34]} 21. Nxd5 {[%clk 0:01:50]}  Nxd5 {[%clk 0:00:33]} 22. Bf1 {[%clk 0:01:43]}  Qg6 {[%clk 0:00:29]} 23. d4 {[%clk 0:01:42]}  Bd6 {[%clk 0:00:27]} 24. Rf3 {[%clk 0:01:38]}  h5 {[%clk 0:00:23]} 25. Bd3 {[%clk 0:01:37]}  Qg5 {[%clk 0:00:23]} 26. e4 {[%clk 0:01:33]}  h4 {[%clk 0:00:13]} 27. e5 {[%clk 0:01:33]}  Nb4 {[%clk 0:00:04]} 28. Bb1 {[%clk 0:01:28]}  f6 {[%clk 0:00:00]} 29. gxh4 {[%clk 0:01:23]} 1-0


[Site "https://www.chess.com"]

[Event "Titled Tuesday Blitz May 9 Early 2023"]
[White "Ankudinova, Yelena"]
[Black "Ismayilova, Khanim"]
[WhiteFideId "13702114"]
[BlackFideId "13429019"]
[WhiteElo "1937"]
[BlackElo "1633"]
[Result "0-1"]
[Round "08"]
[TimeControl "180+2"]
[Date "2023.05.09"]
[WhiteClock "0:00:00"]
[BlackClock "0:01:36"]

1. c4 {[%clk 0:00:28]}  e6 {[%clk 0:02:59]} 2. Nc3 {[%clk 0:00:27]}  d5 {[%clk 0:02:56]} 3. cxd5 {[%clk 0:00:26]}  exd5 {[%clk 0:02:56]} 4. d4 {[%clk 0:00:27]}  Nf6 {[%clk 0:02:55]} 5. Qc2 {[%clk 0:00:22]}  Be7 {[%clk 0:02:54]} 6. Bf4 {[%clk 0:00:19]}  c6 {[%clk 0:02:48]} 7. e3 {[%clk 0:00:20]}  O-O {[%clk 0:02:48]} 8. Nf3 {[%clk 0:00:20]}  Bg4 {[%clk 0:02:42]} 9. Bd3 {[%clk 0:00:20]}  Nbd7 {[%clk 0:02:41]} 10. O-O {[%clk 0:00:19]}  Bxf3 {[%clk 0:02:41]} 11. gxf3 {[%clk 0:00:18]}  h6 {[%clk 0:02:40]} 12. Kh1 {[%clk 0:00:15]}  Nh5 {[%clk 0:02:40]} 13. Bg3 {[%clk 0:00:15]}  Bh4 {[%clk 0:02:34]} 14. Rg1 {[%clk 0:00:13]}  Qf6 {[%clk 0:02:34]} 15. Qe2 {[%clk 0:00:12]}  Rfe8 {[%clk 0:02:13]} 16. f4 {[%clk 0:00:10]}  Bxg3 {[%clk 0:02:05]} 17. hxg3 {[%clk 0:00:08]}  g6 {[%clk 0:01:59]} 18. Kg2 {[%clk 0:00:06]}  Ng7 {[%clk 0:01:52]} 19. Rh1 {[%clk 0:00:07]}  h5 {[%clk 0:01:50]} 20. g4 {[%clk 0:00:06]}  hxg4 {[%clk 0:01:46]} 21. Qxg4 {[%clk 0:00:05]}  Rad8 {[%clk 0:01:34]} 22. Rag1 {[%clk 0:00:03]}  Kf8 {[%clk 0:01:34]} 23. Rh8+ {[%clk 0:00:01]}  Ke7 {[%clk 0:01:35]} 24. Rxe8+ {[%clk 0:00:00]}  Rxe8 {[%clk 0:01:36]} 0-1


[Site "https://www.chess.com"]

[Event "Titled Tuesday Blitz May 9 Early 2023"]
[White "Stead, Kerry"]
[Black "Wessendorf, Thomas, Dr."]
[WhiteFideId "3202577"]
[BlackFideId "4604270"]
[WhiteElo "1997"]
[BlackElo "2280"]
[Result "1-0"]
[Round "08"]
[TimeControl "180+2"]
[Date "2023.05.09"]
[WhiteClock "0:00:30"]
[BlackClock "0:00:00"]

1. d4 {[%clk 0:02:59]}  Nf6 {[%clk 0:02:59]} 2. f3 {[%clk 0:02:58]}  c5 {[%clk 0:02:52]} 3. d5 {[%clk 0:02:57]}  e6 {[%clk 0:02:51]} 4. c4 {[%clk 0:02:56]}  exd5 {[%clk 0:02:51]} 5. cxd5 {[%clk 0:02:55]}  d6 {[%clk 0:02:51]} 6. Nc3 {[%clk 0:02:54]}  g6 {[%clk 0:02:45]} 7. e4 {[%clk 0:02:53]}  Bg7 {[%clk 0:02:45]} 8. Be3 {[%clk 0:02:52]}  O-O {[%clk 0:02:43]} 9. Qd2 {[%clk 0:02:51]}  a6 {[%clk 0:02:29]} 10. a4 {[%clk 0:02:49]}  Nbd7 {[%clk 0:02:29]} 11. Bd3 {[%clk 0:02:39]}  Rb8 {[%clk 0:02:23]} 12. Nge2 {[%clk 0:02:37]}  Ne5 {[%clk 0:02:22]} 13. O-O {[%clk 0:02:35]}  c4 {[%clk 0:02:21]} 14. Bc2 {[%clk 0:02:35]}  b5 {[%clk 0:02:22]} 15. axb5 {[%clk 0:02:34]}  axb5 {[%clk 0:02:22]} 16. Nd4 {[%clk 0:02:33]}  Bd7 {[%clk 0:02:12]} 17. h3 {[%clk 0:02:23]}  b4 {[%clk 0:01:59]} 18. Nce2 {[%clk 0:02:22]}  c3 {[%clk 0:01:55]} 19. bxc3 {[%clk 0:02:18]}  Nc4 {[%clk 0:01:56]} 20. Qc1 {[%clk 0:02:14]}  Nxe3 {[%clk 0:01:52]} 21. Qxe3 {[%clk 0:02:13]}  Re8 {[%clk 0:01:48]} 22. c4 {[%clk 0:02:08]}  Qb6 {[%clk 0:01:42]} 23. Kf2 {[%clk 0:01:57]}  Ra8 {[%clk 0:01:13]} 24. Rxa8 {[%clk 0:01:54]}  Rxa8 {[%clk 0:01:12]} 25. Rb1 {[%clk 0:01:47]}  Ne8 {[%clk 0:01:01]} 26. Nf5 {[%clk 0:01:23]}  Qa5 {[%clk 0:00:43]} 27. Nxg7 {[%clk 0:01:17]}  Kxg7 {[%clk 0:00:43]} 28. Qd2 {[%clk 0:01:08]}  Rb8 {[%clk 0:00:32]} 29. Nc1 {[%clk 0:01:01]}  Nc7 {[%clk 0:00:30]} 30. Nb3 {[%clk 0:00:58]}  Qa6 {[%clk 0:00:18]} 31. Qd4+ {[%clk 0:00:55]}  f6 {[%clk 0:00:18]} 32. c5 {[%clk 0:00:51]}  Nb5 {[%clk 0:00:17]} 33. Qd3 {[%clk 0:00:41]}  dxc5 {[%clk 0:00:13]} 34. Nxc5 {[%clk 0:00:41]}  Qb6 {[%clk 0:00:13]} 35. Qe3 {[%clk 0:00:40]}  Nc3 {[%clk 0:00:10]} 36. Nxd7 {[%clk 0:00:35]}  Qxe3+ {[%clk 0:00:09]} 37. Kxe3 {[%clk 0:00:36]}  Nxb1 {[%clk 0:00:07]} 38. Nxb8 {[%clk 0:00:35]}  Na3 {[%clk 0:00:07]} 39. Bb3 {[%clk 0:00:35]}  Nb5 {[%clk 0:00:06]} 40. Nc6 {[%clk 0:00:33]}  Kf7 {[%clk 0:00:04]} 41. Nxb4 {[%clk 0:00:33]}  Ke7 {[%clk 0:00:04]} 42. Nd3 {[%clk 0:00:32]}  Nc3 {[%clk 0:00:00]} 43. Kd2 {[%clk 0:00:30]} 1-0


[Site "https://www.chess.com"]

[Event "Titled Tuesday Blitz May 9 Early 2023"]
[White "Lakshmi C"]
[Black "Maluco_do_Natal_00"]
[WhiteFideId "25035347"]
[WhiteElo "1942"]
[BlackElo "2020"]
[Result "0-1"]
[Round "08"]
[TimeControl "180+2"]
[Date "2023.05.09"]
[WhiteClock "0:00:00"]
[BlackClock "0:00:02"]

1. e4 {[%clk 0:02:03]}  c5 {[%clk 0:02:58]} 2. Nf3 {[%clk 0:02:01]}  Nc6 {[%clk 0:02:58]} 3. d4 {[%clk 0:02:00]}  cxd4 {[%clk 0:02:59]} 4. Nxd4 {[%clk 0:01:59]}  Nf6 {[%clk 0:02:59]} 5. Nc3 {[%clk 0:01:57]}  e5 {[%clk 0:02:58]} 6. Ndb5 {[%clk 0:01:58]}  d6 {[%clk 0:02:57]} 7. Bg5 {[%clk 0:01:56]}  a6 {[%clk 0:02:58]} 8. Na3 {[%clk 0:01:56]}  b5 {[%clk 0:02:58]} 9. Nd5 {[%clk 0:01:56]}  Be7 {[%clk 0:02:58]} 10. Bxf6 {[%clk 0:01:55]}  Bxf6 {[%clk 0:02:59]} 11. c3 {[%clk 0:01:53]}  O-O {[%clk 0:02:59]} 12. Nc2 {[%clk 0:01:52]}  Bg5 {[%clk 0:02:59]} 13. a4 {[%clk 0:01:52]}  bxa4 {[%clk 0:02:58]} 14. Rxa4 {[%clk 0:01:52]}  a5 {[%clk 0:02:58]} 15. Bc4 {[%clk 0:01:50]}  Bd7 {[%clk 0:02:45]} 16. Ra2 {[%clk 0:01:48]}  Ne7 {[%clk 0:02:33]} 17. Nce3 {[%clk 0:01:44]}  Bxe3 {[%clk 0:02:32]} 18. Nxe3 {[%clk 0:01:43]}  Bc6 {[%clk 0:02:21]} 19. Qd3 {[%clk 0:01:33]}  Qc7 {[%clk 0:01:53]} 20. O-O {[%clk 0:01:30]}  Rfd8 {[%clk 0:01:29]} 21. Nd5 {[%clk 0:00:53]}  Nxd5 {[%clk 0:01:22]} 22. Bxd5 {[%clk 0:00:52]}  Qb7 {[%clk 0:01:14]} 23. Rd1 {[%clk 0:00:49]}  g6 {[%clk 0:00:55]} 24. Qc4 {[%clk 0:00:46]}  Bxd5 {[%clk 0:00:38]} 25. Rxd5 {[%clk 0:00:43]}  Qb6 {[%clk 0:00:22]} 26. Rb5 {[%clk 0:00:39]}  Qa7 {[%clk 0:00:06]} 27. b4 {[%clk 0:00:07]}  a4 {[%clk 0:00:05]} 28. Ra5 {[%clk 0:00:07]}  Qb7 {[%clk 0:00:04]} 29. R2xa4 {[%clk 0:00:07]}  Rxa5 {[%clk 0:00:04]} 30. Rxa5 {[%clk 0:00:07]}  Kg7 {[%clk 0:00:03]} 31. Qa6 {[%clk 0:00:06]}  Qc7 {[%clk 0:00:03]} 32. Qd3 {[%clk 0:00:04]}  Rc8 {[%clk 0:00:03]} 33. Rd5 {[%clk 0:00:02]}  Qxc3 {[%clk 0:00:02]} 34. Qxc3 {[%clk 0:00:02]}  Rxc3 {[%clk 0:00:03]} 35. g3 {[%clk 0:00:03]}  Rb3 {[%clk 0:00:03]} 36. Rb5 {[%clk 0:00:03]}  Kf6 {[%clk 0:00:02]} 37. Rb6 {[%clk 0:00:03]}  Ke6 {[%clk 0:00:02]} 38. Kg2 {[%clk 0:00:04]}  h5 {[%clk 0:00:03]} 39. h4 {[%clk 0:00:04]}  g5 {[%clk 0:00:02]} 40. hxg5 {[%clk 0:00:03]}  Rb2 {[%clk 0:00:02]} 41. Kf3 {[%clk 0:00:03]}  Rb3+ {[%clk 0:00:02]} 42. Kg2 {[%clk 0:00:03]}  Rb2 {[%clk 0:00:02]} 43. Rb8 {[%clk 0:00:03]}  Rb3 {[%clk 0:00:02]} 44. Kh3 {[%clk 0:00:04]}  Rb2 {[%clk 0:00:02]} 45. f4 {[%clk 0:00:04]}  exf4 {[%clk 0:00:02]} 46. gxf4 {[%clk 0:00:04]}  Rb3+ {[%clk 0:00:02]} 47. Kh4 {[%clk 0:00:04]}  Re3 {[%clk 0:00:02]} 48. f5+ {[%clk 0:00:04]}  Ke5 {[%clk 0:00:02]} 49. Re8+ {[%clk 0:00:04]}  Kd4 {[%clk 0:00:02]} 50. g6 {[%clk 0:00:04]}  fxg6 {[%clk 0:00:02]} 51. fxg6 {[%clk 0:00:04]}  Rf3 {[%clk 0:00:01]} 52. g7 {[%clk 0:00:03]}  Rf4+ {[%clk 0:00:01]} 53. Kg5 {[%clk 0:00:03]}  Rg4+ {[%clk 0:00:01]} 54. Kh6 {[%clk 0:00:03]}  h4 {[%clk 0:00:02]} 55. Kh7 {[%clk 0:00:03]}  h3 {[%clk 0:00:02]} 56. g8=Q {[%clk 0:00:00]}  Rxg8 {[%clk 0:00:02]} 0-1


[Site "https://www.chess.com"]

[Event "Titled Tuesday Blitz May 9 Early 2023"]
[White "KSho99"]
[Black "Panico, Nick"]
[BlackFideId "2026724"]
[WhiteElo "2150"]
[BlackElo "1982"]
[Result "1-0"]
[Round "08"]
[TimeControl "180+2"]
[Date "2023.05.09"]
[WhiteClock "0:00:43"]
[BlackClock "0:00:42"]

1. Nf3 {[%clk 0:03:00]}  f5 {[%clk 0:02:58]} 2. d3 {[%clk 0:02:59]}  d6 {[%clk 0:02:48]} 3. e4 {[%clk 0:02:58]}  e5 {[%clk 0:02:42]} 4. Nc3 {[%clk 0:02:51]}  Nf6 {[%clk 0:02:42]} 5. g3 {[%clk 0:02:31]}  Nc6 {[%clk 0:02:40]} 6. Bg2 {[%clk 0:02:31]}  Be7 {[%clk 0:02:31]} 7. O-O {[%clk 0:02:30]}  O-O {[%clk 0:02:31]} 8. Re1 {[%clk 0:02:18]}  fxe4 {[%clk 0:02:31]} 9. dxe4 {[%clk 0:02:15]}  Bg4 {[%clk 0:02:29]} 10. h3 {[%clk 0:02:15]}  Bh5 {[%clk 0:02:30]} 11. a3 {[%clk 0:02:02]}  Qd7 {[%clk 0:02:24]} 12. Qd3 {[%clk 0:02:01]}  Bxf3 {[%clk 0:01:56]} 13. Qxf3 {[%clk 0:01:59]}  Nd4 {[%clk 0:01:56]} 14. Qd1 {[%clk 0:01:58]}  c6 {[%clk 0:01:52]} 15. Be3 {[%clk 0:01:54]}  Ne6 {[%clk 0:01:50]} 16. h4 {[%clk 0:01:43]}  h5 {[%clk 0:01:43]} 17. Bh3 {[%clk 0:01:39]}  Rae8 {[%clk 0:01:31]} 18. Bg5 {[%clk 0:01:37]}  Bd8 {[%clk 0:01:31]} 19. Bxf6 {[%clk 0:01:34]}  Rxf6 {[%clk 0:01:27]} 20. Qxh5 {[%clk 0:01:34]}  Ref8 {[%clk 0:01:26]} 21. Re2 {[%clk 0:01:23]}  Rh6 {[%clk 0:01:26]} 22. Qg4 {[%clk 0:01:20]}  Qf7 {[%clk 0:01:24]} 23. Rf1 {[%clk 0:01:16]}  Nd4 {[%clk 0:01:24]} 24. Re3 {[%clk 0:01:10]}  Rg6 {[%clk 0:01:23]} 25. Qd1 {[%clk 0:01:07]}  Bxh4 {[%clk 0:01:23]} 26. Bg2 {[%clk 0:01:01]}  Bg5 {[%clk 0:01:21]} 27. f4 {[%clk 0:00:55]}  exf4 {[%clk 0:01:17]} 28. Qxd4 {[%clk 0:00:54]}  Qd7 {[%clk 0:01:07]} 29. gxf4 {[%clk 0:00:52]}  Bxf4 {[%clk 0:01:07]} 30. Ref3 {[%clk 0:00:49]}  Qg4 {[%clk 0:00:45]} 31. Qf2 {[%clk 0:00:47]}  Rh6 {[%clk 0:00:42]} 32. Rxf4 {[%clk 0:00:43]} 1-0


[Site "https://www.chess.com"]

[Event "Titled Tuesday Blitz May 9 Early 2023"]
[White "Nastase, Robert-Paul"]
[Black "Vargas, Mauricio"]
[WhiteFideId "1221175"]
[BlackFideId "4404572"]
[WhiteElo "2175"]
[BlackElo "1986"]
[Result "1-0"]
[Round "08"]
[TimeControl "180+2"]
[Date "2023.05.09"]
[WhiteClock "0:00:24"]
[BlackClock "0:00:00"]

1. e4 {[%clk 0:03:00]}  c5 {[%clk 0:02:01]} 2. Nc3 {[%clk 0:02:58]}  Nc6 {[%clk 0:01:57]} 3. Bb5 {[%clk 0:02:52]}  Nd4 {[%clk 0:01:56]} 4. Nf3 {[%clk 0:02:52]}  Nxb5 {[%clk 0:01:56]} 5. Nxb5 {[%clk 0:02:53]}  c4 {[%clk 0:01:37]} 6. O-O {[%clk 0:02:31]}  a6 {[%clk 0:01:36]} 7. Nc3 {[%clk 0:02:23]}  b5 {[%clk 0:01:36]} 8. d3 {[%clk 0:02:16]}  cxd3 {[%clk 0:01:35]} 9. Qxd3 {[%clk 0:02:15]}  Bb7 {[%clk 0:01:33]} 10. Be3 {[%clk 0:02:07]}  d6 {[%clk 0:01:21]} 11. a4 {[%clk 0:02:05]}  b4 {[%clk 0:01:18]} 12. Nd5 {[%clk 0:02:01]}  e6 {[%clk 0:01:13]} 13. Bb6 {[%clk 0:01:50]}  Qd7 {[%clk 0:00:51]} 14. Nc7+ {[%clk 0:01:50]}  Ke7 {[%clk 0:00:50]} 15. Nxa8 {[%clk 0:01:40]}  Bxa8 {[%clk 0:00:48]} 16. Rfd1 {[%clk 0:01:35]}  Bb7 {[%clk 0:00:42]} 17. Qc4 {[%clk 0:01:29]}  Nf6 {[%clk 0:00:39]} 18. Ne5 {[%clk 0:00:58]}  Qc8 {[%clk 0:00:22]} 19. Qxb4 {[%clk 0:00:35]}  Nxe4 {[%clk 0:00:21]} 20. f3 {[%clk 0:00:34]}  Nc5 {[%clk 0:00:17]} 21. Bxc5 {[%clk 0:00:31]}  Qxc5+ {[%clk 0:00:11]} 22. Qxc5 {[%clk 0:00:31]}  dxc5 {[%clk 0:00:12]} 23. Rd7+ {[%clk 0:00:29]}  Ke8 {[%clk 0:00:11]} 24. Rxb7 {[%clk 0:00:29]}  f6 {[%clk 0:00:11]} 25. Nc6 {[%clk 0:00:24]}  e5 {[%clk 0:00:00]} 26. Rd1 {[%clk 0:00:24]} 1-0


[Site "https://www.chess.com"]

[Event "Titled Tuesday Blitz May 9 Early 2023"]
[White "Brueckner, Thomas"]
[Black "Butti, Enrique"]
[WhiteFideId "4600452"]
[BlackFideId "3700470"]
[WhiteElo "2322"]
[BlackElo "2080"]
[Result "1-0"]
[Round "08"]
[TimeControl "180+2"]
[Date "2023.05.09"]
[WhiteClock "0:00:40"]
[BlackClock "0:00:55"]

1. Nf3 {[%clk 0:03:00]}  c5 {[%clk 0:02:58]} 2. c4 {[%clk 0:02:58]}  Nf6 {[%clk 0:02:56]} 3. g3 {[%clk 0:02:58]}  b6 {[%clk 0:02:56]} 4. Bg2 {[%clk 0:02:56]}  Bb7 {[%clk 0:02:55]} 5. O-O {[%clk 0:02:51]}  e6 {[%clk 0:02:54]} 6. b3 {[%clk 0:02:39]}  Be7 {[%clk 0:02:51]} 7. Bb2 {[%clk 0:02:38]}  O-O {[%clk 0:02:50]} 8. e3 {[%clk 0:02:36]}  d5 {[%clk 0:02:47]} 9. cxd5 {[%clk 0:02:34]}  Nxd5 {[%clk 0:02:44]} 10. d4 {[%clk 0:02:24]}  Bf6 {[%clk 0:02:44]} 11. Nc3 {[%clk 0:02:01]}  Nxc3 {[%clk 0:02:43]} 12. Bxc3 {[%clk 0:02:01]}  Nc6 {[%clk 0:02:42]} 13. Rc1 {[%clk 0:01:55]}  cxd4 {[%clk 0:02:21]} 14. Nxd4 {[%clk 0:01:55]}  Bxd4 {[%clk 0:02:14]} 15. Bxd4 {[%clk 0:01:53]}  Rc8 {[%clk 0:02:12]} 16. Bc3 {[%clk 0:01:47]}  Qe7 {[%clk 0:02:11]} 17. Qe2 {[%clk 0:01:30]}  Nb8 {[%clk 0:02:01]} 18. e4 {[%clk 0:01:26]}  Rfd8 {[%clk 0:01:56]} 19. Qb2 {[%clk 0:01:24]}  f6 {[%clk 0:01:51]} 20. Rfd1 {[%clk 0:01:19]}  Nd7 {[%clk 0:01:44]} 21. b4 {[%clk 0:01:19]}  e5 {[%clk 0:01:39]} 22. Qb3+ {[%clk 0:01:13]}  Kh8 {[%clk 0:01:28]} 23. Bd2 {[%clk 0:00:58]}  Nf8 {[%clk 0:01:25]} 24. Be3 {[%clk 0:00:57]}  Ne6 {[%clk 0:01:20]} 25. Rxc8 {[%clk 0:00:54]}  Rxc8 {[%clk 0:01:17]} 26. Bh3 {[%clk 0:00:53]}  Rc6 {[%clk 0:01:05]} 27. b5 {[%clk 0:00:48]}  Nc5 {[%clk 0:01:01]} 28. bxc6 {[%clk 0:00:40]}  Nxb3 {[%clk 0:00:55]} 29. cxb7 {[%clk 0:00:40]} 1-0


[Site "https://www.chess.com"]

[Event "Titled Tuesday Blitz May 9 Early 2023"]
[White "Kollars, Dmitrij"]
[Black "Matlakov, Maxim"]
[WhiteFideId "12909572"]
[BlackFideId "4168003"]
[WhiteElo "2584"]
[BlackElo "2666"]
[Result "1/2-1/2"]
[Round "09"]
[TimeControl "180+2"]
[Date "2023.05.09"]
[WhiteClock "0:00:05"]
[BlackClock "0:00:06"]

1. e4 {[%clk 0:02:51]}  c5 {[%clk 0:02:59]} 2. Nf3 {[%clk 0:02:50]}  d6 {[%clk 0:03:00]} 3. d4 {[%clk 0:02:49]}  cxd4 {[%clk 0:03:01]} 4. Nxd4 {[%clk 0:02:50]}  Nf6 {[%clk 0:03:01]} 5. Nc3 {[%clk 0:02:51]}  a6 {[%clk 0:03:02]} 6. f4 {[%clk 0:02:51]}  e5 {[%clk 0:02:59]} 7. Nb3 {[%clk 0:02:52]}  Be7 {[%clk 0:02:58]} 8. fxe5 {[%clk 0:02:51]}  dxe5 {[%clk 0:02:58]} 9. Qxd8+ {[%clk 0:02:52]}  Bxd8 {[%clk 0:02:59]} 10. Be3 {[%clk 0:02:53]}  O-O {[%clk 0:02:58]} 11. Be2 {[%clk 0:02:51]}  Nc6 {[%clk 0:02:57]} 12. O-O-O {[%clk 0:02:51]}  b5 {[%clk 0:02:50]} 13. Bf3 {[%clk 0:02:44]}  Re8 {[%clk 0:02:49]} 14. a3 {[%clk 0:02:36]}  h6 {[%clk 0:02:48]} 15. h3 {[%clk 0:02:34]}  Rb8 {[%clk 0:02:41]} 16. Rd6 {[%clk 0:02:26]}  Na5 {[%clk 0:02:33]} 17. Nxa5 {[%clk 0:01:54]}  Bxa5 {[%clk 0:02:34]} 18. b4 {[%clk 0:01:55]}  Bc7 {[%clk 0:02:30]} 19. Rc6 {[%clk 0:01:55]}  Bd8 {[%clk 0:02:14]} 20. Rd1 {[%clk 0:01:49]}  Bb7 {[%clk 0:02:14]} 21. Rcd6 {[%clk 0:01:48]}  Be7 {[%clk 0:02:11]} 22. R6d3 {[%clk 0:01:49]}  Rbc8 {[%clk 0:02:08]} 23. Kb2 {[%clk 0:01:21]}  Rc4 {[%clk 0:02:07]} 24. R3d2 {[%clk 0:01:08]}  Rec8 {[%clk 0:01:46]} 25. Nd5 {[%clk 0:01:03]}  Nxd5 {[%clk 0:01:40]} 26. exd5 {[%clk 0:01:04]}  e4 {[%clk 0:01:40]} 27. Bg4 {[%clk 0:01:01]}  Rd8 {[%clk 0:01:06]} 28. Bb6 {[%clk 0:00:53]}  Rf8 {[%clk 0:00:38]} 29. d6 {[%clk 0:00:42]}  Bd8 {[%clk 0:00:38]} 30. Bxd8 {[%clk 0:00:19]}  Rxd8 {[%clk 0:00:39]} 31. Rd4 {[%clk 0:00:19]}  Rxd4 {[%clk 0:00:34]} 32. Rxd4 {[%clk 0:00:20]}  g6 {[%clk 0:00:34]} 33. a4 {[%clk 0:00:20]}  Bc6 {[%clk 0:00:20]} 34. Be2 {[%clk 0:00:18]}  Kf8 {[%clk 0:00:20]} 35. axb5 {[%clk 0:00:17]}  axb5 {[%clk 0:00:21]} 36. c4 {[%clk 0:00:17]}  bxc4 {[%clk 0:00:21]} 37. Bxc4 {[%clk 0:00:18]}  f5 {[%clk 0:00:22]} 38. b5 {[%clk 0:00:17]}  Bb7 {[%clk 0:00:19]} 39. Kc3 {[%clk 0:00:17]}  f4 {[%clk 0:00:19]} 40. Bd5 {[%clk 0:00:17]}  Rc8+ {[%clk 0:00:18]} 41. Kd2 {[%clk 0:00:15]}  e3+ {[%clk 0:00:18]} 42. Kd3 {[%clk 0:00:15]}  Bxd5 {[%clk 0:00:14]} 43. Rxd5 {[%clk 0:00:16]}  Rb8 {[%clk 0:00:14]} 44. h4 {[%clk 0:00:14]}  Kf7 {[%clk 0:00:13]} 45. d7 {[%clk 0:00:10]}  Ke7 {[%clk 0:00:13]} 46. g3 {[%clk 0:00:10]}  g5 {[%clk 0:00:12]} 47. hxg5 {[%clk 0:00:09]}  hxg5 {[%clk 0:00:12]} 48. Rxg5 {[%clk 0:00:09]}  fxg3 {[%clk 0:00:12]} 49. Rg7+ {[%clk 0:00:07]}  Kd6 {[%clk 0:00:08]} 50. Kxe3 {[%clk 0:00:06]}  Kc7 {[%clk 0:00:07]} 51. b6+ {[%clk 0:00:02]}  Kxb6 {[%clk 0:00:06]} 52. d8=Q+ {[%clk 0:00:02]}  Rxd8 {[%clk 0:00:06]} 53. Kf3 {[%clk 0:00:03]}  Rd6 {[%clk 0:00:05]} 54. Rxg3 {[%clk 0:00:03]}  Rd3+ {[%clk 0:00:06]} 55. Kg2 {[%clk 0:00:04]}  Rxg3+ {[%clk 0:00:06]} 56. Kxg3 {[%clk 0:00:05]} 1/2-1/2


[Site "https://www.chess.com"]